[Event "Titled Tuesday Blitz February 14 Early 2023"]
[White "Sadovsky, Artem"]
[Black "Willathgamuwa, Kevin"]
[WhiteFideId "4155840"]
[BlackFideId "3214168"]
[WhiteElo "2276"]
[BlackElo "2062"]
[Result "0-1"]
[Round "09"]
[TimeControl "180+2"]
[Date "2023.02.14"]
[WhiteClock "0:00:49"]
[BlackClock "0:00:13"]

1. Nf3 {[%clk 0:02:50]}  e6 {[%clk 0:01:53]} 2. e3 {[%clk 0:02:50]}  d5 {[%clk 0:01:52]} 3. c4 {[%clk 0:02:51]}  Nf6 {[%clk 0:01:48]} 4. b3 {[%clk 0:02:49]}  Be7 {[%clk 0:01:48]} 5. Bb2 {[%clk 0:02:43]}  O-O {[%clk 0:01:48]} 6. Be2 {[%clk 0:02:41]}  b6 {[%clk 0:01:48]} 7. O-O {[%clk 0:02:32]}  Bb7 {[%clk 0:01:47]} 8. d3 {[%clk 0:02:33]}  c5 {[%clk 0:01:46]} 9. Qc2 {[%clk 0:02:32]}  Nc6 {[%clk 0:01:46]} 10. Nbd2 {[%clk 0:02:32]}  d4 {[%clk 0:01:35]} 11. e4 {[%clk 0:02:29]}  e5 {[%clk 0:01:31]} 12. Ne1 {[%clk 0:02:27]}  Bd6 {[%clk 0:01:29]} 13. g3 {[%clk 0:02:27]}  Bc8 {[%clk 0:01:24]} 14. Ng2 {[%clk 0:02:28]}  Bg4 {[%clk 0:01:24]} 15. f4 {[%clk 0:02:28]}  Bxe2 {[%clk 0:01:24]} 16. Rf2 {[%clk 0:02:28]}  Bg4 {[%clk 0:01:22]} 17. f5 {[%clk 0:02:28]}  Bh3 {[%clk 0:01:19]} 18. Nf3 {[%clk 0:02:25]}  Ng4 {[%clk 0:01:15]} 19. Ngh4 {[%clk 0:02:03]}  Nxf2 {[%clk 0:01:00]} 20. Qxf2 {[%clk 0:02:04]}  Bg4 {[%clk 0:01:01]} 21. Ne1 {[%clk 0:01:56]}  Qg5 {[%clk 0:00:54]} 22. Bc1 {[%clk 0:01:56]}  Qh5 {[%clk 0:00:47]} 23. Qg2 {[%clk 0:01:54]}  g5 {[%clk 0:00:41]} 24. h3 {[%clk 0:01:39]}  gxh4 {[%clk 0:00:41]} 25. gxh4 {[%clk 0:01:39]}  Qxh4 {[%clk 0:00:37]} 26. Nf3 {[%clk 0:01:39]}  Qxh3 {[%clk 0:00:36]} 27. Qxh3 {[%clk 0:01:35]}  Bxh3 {[%clk 0:00:37]} 28. Bh6 {[%clk 0:01:33]}  Kh8 {[%clk 0:00:33]} 29. Kh2 {[%clk 0:01:30]}  Bg4 {[%clk 0:00:24]} 30. Rg1 {[%clk 0:01:30]}  Rg8 {[%clk 0:00:21]} 31. Ng5 {[%clk 0:01:30]}  Bh5 {[%clk 0:00:15]} 32. f6 {[%clk 0:01:27]}  Bf8 {[%clk 0:00:15]} 33. Bxf8 {[%clk 0:01:10]}  Raxf8 {[%clk 0:00:16]} 34. Kh3 {[%clk 0:01:10]}  h6 {[%clk 0:00:16]} 35. Kh4 {[%clk 0:01:07]}  Rxg5 {[%clk 0:00:16]} 36. Rh1 {[%clk 0:01:05]}  Rfg8 {[%clk 0:00:15]} 37. Rh3 {[%clk 0:00:56]}  Be2 {[%clk 0:00:14]} 38. Rh2 {[%clk 0:00:49]}  Rh5# {[%clk 0:00:13]} 0-1


[Site "https://www.chess.com"]

[Event "Titled Tuesday Blitz February 14 Early 2023"]
[White "Mazurkiewicz, Michal"]
[Black "Hrabinska, Myroslava"]
[WhiteFideId "1124943"]
[BlackFideId "14109190"]
[WhiteElo "2145"]
[BlackElo "2210"]
[Result "1-0"]
[Round "09"]
[TimeControl "180+2"]
[Date "2023.02.14"]
[WhiteClock "0:02:03"]
[BlackClock "0:00:13"]

1. e4 {[%clk 0:02:59]}  c5 {[%clk 0:02:59]} 2. Nf3 {[%clk 0:02:59]}  Nc6 {[%clk 0:02:57]} 3. g3 {[%clk 0:02:59]}  g6 {[%clk 0:02:52]} 4. Bg2 {[%clk 0:03:00]}  Bg7 {[%clk 0:02:52]} 5. O-O {[%clk 0:03:00]}  e5 {[%clk 0:02:18]} 6. d3 {[%clk 0:02:59]}  Nge7 {[%clk 0:02:17]} 7. Nc3 {[%clk 0:03:00]}  O-O {[%clk 0:02:16]} 8. Nd2 {[%clk 0:03:01]}  d6 {[%clk 0:02:13]} 9. Nc4 {[%clk 0:03:01]}  f5 {[%clk 0:02:09]} 10. Nb5 {[%clk 0:02:59]}  a6 {[%clk 0:00:44]} 11. Nbxd6 {[%clk 0:02:59]}  b5 {[%clk 0:00:43]} 12. Nxc8 {[%clk 0:02:59]}  Rxc8 {[%clk 0:00:42]} 13. Ne3 {[%clk 0:02:59]}  f4 {[%clk 0:00:40]} 14. Nd5 {[%clk 0:02:59]}  Nd4 {[%clk 0:00:23]} 15. c3 {[%clk 0:02:54]}  Ne6 {[%clk 0:00:22]} 16. Qg4 {[%clk 0:02:52]}  Rc6 {[%clk 0:00:20]} 17. gxf4 {[%clk 0:02:38]}  h5 {[%clk 0:00:16]} 18. Nxe7+ {[%clk 0:02:15]}  Qxe7 {[%clk 0:00:16]} 19. Qxg6 {[%clk 0:02:15]}  Nd4 {[%clk 0:00:15]} 20. Qg5 {[%clk 0:02:04]}  Ne2+ {[%clk 0:00:14]} 21. Kh1 {[%clk 0:02:04]}  exf4 {[%clk 0:00:13]} 22. Qxe7 {[%clk 0:02:03]} 1-0


[Site "https://www.chess.com"]

[Event "Titled Tuesday Blitz February 14 Early 2023"]
[White "Mesa Cruz, Juan Carlos"]
[Black "Mendez Machado, Andre"]
[WhiteFideId "6423400"]
[BlackFideId "6603793"]
[WhiteElo "2122"]
[BlackElo "1974"]
[Result "1-0"]
[Round "09"]
[TimeControl "180+2"]
[Date "2023.02.14"]
[WhiteClock "0:00:06"]
[BlackClock "0:00:02"]

1. e4 {[%clk 0:03:00]}  e5 {[%clk 0:02:59]} 2. Nf3 {[%clk 0:03:00]}  Nc6 {[%clk 0:03:00]} 3. Bc4 {[%clk 0:03:00]}  Bc5 {[%clk 0:02:59]} 4. c3 {[%clk 0:03:00]}  Nf6 {[%clk 0:02:59]} 5. d3 {[%clk 0:02:59]}  a5 {[%clk 0:02:59]} 6. a4 {[%clk 0:02:59]}  d6 {[%clk 0:02:57]} 7. Nbd2 {[%clk 0:02:56]}  Ba7 {[%clk 0:02:57]} 8. Bb5 {[%clk 0:02:56]}  O-O {[%clk 0:02:56]} 9. Nf1 {[%clk 0:02:52]}  Kh8 {[%clk 0:02:46]} 10. Bxc6 {[%clk 0:02:50]}  bxc6 {[%clk 0:02:46]} 11. Ng3 {[%clk 0:02:51]}  Ng4 {[%clk 0:02:41]} 12. O-O {[%clk 0:02:49]}  f5 {[%clk 0:02:41]} 13. exf5 {[%clk 0:02:48]}  Bxf5 {[%clk 0:02:40]} 14. h3 {[%clk 0:02:47]}  Nh6 {[%clk 0:02:38]} 15. d4 {[%clk 0:02:37]}  Qf6 {[%clk 0:02:13]} 16. dxe5 {[%clk 0:02:27]}  dxe5 {[%clk 0:02:14]} 17. Bxh6 {[%clk 0:02:23]}  Qxh6 {[%clk 0:02:00]} 18. Nxe5 {[%clk 0:02:13]}  Qf4 {[%clk 0:01:48]} 19. Nxf5 {[%clk 0:02:03]}  Rxf5 {[%clk 0:01:34]} 20. Nd3 {[%clk 0:01:44]}  Qg5 {[%clk 0:01:21]} 21. Qe2 {[%clk 0:01:30]}  Raf8 {[%clk 0:01:15]} 22. Kh2 {[%clk 0:01:26]}  h5 {[%clk 0:00:41]} 23. Rae1 {[%clk 0:01:12]}  c5 {[%clk 0:00:35]} 24. c4 {[%clk 0:01:11]}  c6 {[%clk 0:00:31]} 25. Qe7 {[%clk 0:00:43]}  Bb8+ {[%clk 0:00:30]} 26. Kg1 {[%clk 0:00:37]}  Qg6 {[%clk 0:00:20]} 27. Re6 {[%clk 0:00:35]}  Qh7 {[%clk 0:00:11]} 28. Ne5 {[%clk 0:00:28]}  Bxe5 {[%clk 0:00:10]} 29. Rxe5 {[%clk 0:00:27]}  R5f7 {[%clk 0:00:10]} 30. Qe8 {[%clk 0:00:25]}  Rxe8 {[%clk 0:00:09]} 31. Rxe8+ {[%clk 0:00:24]}  Qg8 {[%clk 0:00:09]} 32. Rxg8+ {[%clk 0:00:24]}  Kxg8 {[%clk 0:00:10]} 33. Rd1 {[%clk 0:00:19]}  Rb7 {[%clk 0:00:11]} 34. Rd8+ {[%clk 0:00:18]}  Kh7 {[%clk 0:00:10]} 35. Ra8 {[%clk 0:00:18]}  Rxb2 {[%clk 0:00:09]} 36. Rxa5 {[%clk 0:00:19]}  Rb4 {[%clk 0:00:09]} 37. Rxc5 {[%clk 0:00:19]}  Rxa4 {[%clk 0:00:08]} 38. Rxc6 {[%clk 0:00:20]}  Ra1+ {[%clk 0:00:09]} 39. Kh2 {[%clk 0:00:20]}  h4 {[%clk 0:00:09]} 40. Rc5 {[%clk 0:00:16]}  Kh6 {[%clk 0:00:09]} 41. f4 {[%clk 0:00:17]}  Rf1 {[%clk 0:00:08]} 42. Rf5 {[%clk 0:00:16]}  Rc1 {[%clk 0:00:07]} 43. c5 {[%clk 0:00:15]}  g6 {[%clk 0:00:08]} 44. Rf7 {[%clk 0:00:14]}  Rxc5 {[%clk 0:00:08]} 45. Kg1 {[%clk 0:00:14]}  Rc2 {[%clk 0:00:07]} 46. Kf1 {[%clk 0:00:14]}  Rc1+ {[%clk 0:00:06]} 47. Kf2 {[%clk 0:00:15]}  Rc2+ {[%clk 0:00:07]} 48. Kf3 {[%clk 0:00:15]}  Rc3+ {[%clk 0:00:05]} 49. Kf2 {[%clk 0:00:12]}  g5 {[%clk 0:00:02]} 50. Rf6+ {[%clk 0:00:10]}  Kh5 {[%clk 0:00:02]} 51. Rf5 {[%clk 0:00:10]}  Rc2+ {[%clk 0:00:02]} 52. Kg1 {[%clk 0:00:10]}  Rc1+ {[%clk 0:00:02]} 53. Kh2 {[%clk 0:00:10]}  Rc2 {[%clk 0:00:02]} 54. Rxg5+ {[%clk 0:00:10]}  Kh6 {[%clk 0:00:02]} 55. Kg1 {[%clk 0:00:10]}  Rc1+ {[%clk 0:00:02]} 56. Kf2 {[%clk 0:00:10]}  Rc4 {[%clk 0:00:03]} 57. Kf3 {[%clk 0:00:10]}  Rc3+ {[%clk 0:00:03]} 58. Kg4 {[%clk 0:00:10]}  Rc4 {[%clk 0:00:03]} 59. Rf5 {[%clk 0:00:09]}  Rc2 {[%clk 0:00:02]} 60. Rf6+ {[%clk 0:00:06]}  Kg7 {[%clk 0:00:02]} 61. Kf5 {[%clk 0:00:05]}  Rxg2 {[%clk 0:00:02]} 62. Ra6 {[%clk 0:00:05]}  Rh2 {[%clk 0:00:02]} 63. Ra7+ {[%clk 0:00:06]}  Kh6 {[%clk 0:00:02]} 64. Kg4 {[%clk 0:00:06]} 1-0


[Site "https://www.chess.com"]

[Event "Titled Tuesday Blitz February 14 Early 2023"]
[White "EdmundPlayer"]
[Black "Avazkhonov, Alikhon"]
[BlackFideId "14208504"]
[WhiteElo "2246"]
[BlackElo "1538"]
[Result "0-1"]
[Round "09"]
[TimeControl "180+2"]
[Date "2023.02.14"]
[WhiteClock "0:00:06"]
[BlackClock "0:00:17"]

1. e4 {[%clk 0:02:56]}  c5 {[%clk 0:02:51]} 2. Nf3 {[%clk 0:02:54]}  g6 {[%clk 0:02:51]} 3. c4 {[%clk 0:02:53]}  Bg7 {[%clk 0:02:50]} 4. d4 {[%clk 0:02:53]}  cxd4 {[%clk 0:02:51]} 5. Nxd4 {[%clk 0:02:54]}  Nc6 {[%clk 0:02:52]} 6. Be3 {[%clk 0:02:53]}  Nf6 {[%clk 0:02:52]} 7. Nc3 {[%clk 0:02:52]}  O-O {[%clk 0:02:52]} 8. Be2 {[%clk 0:02:50]}  d6 {[%clk 0:02:53]} 9. O-O {[%clk 0:02:48]}  Bd7 {[%clk 0:02:53]} 10. h3 {[%clk 0:02:43]}  a6 {[%clk 0:02:26]} 11. Rc1 {[%clk 0:02:35]}  Rc8 {[%clk 0:02:12]} 12. f4 {[%clk 0:02:22]}  Qa5 {[%clk 0:02:09]} 13. Qd2 {[%clk 0:02:08]}  Nxd4 {[%clk 0:02:06]} 14. Bxd4 {[%clk 0:02:05]}  Nxe4 {[%clk 0:02:06]} 15. Qe3 {[%clk 0:01:35]}  Bxd4 {[%clk 0:02:04]} 16. Qxd4 {[%clk 0:01:31]}  Qc5 {[%clk 0:01:59]} 17. Qxc5 {[%clk 0:01:26]}  Nxc5 {[%clk 0:02:00]} 18. Nd5 {[%clk 0:01:27]}  Rfe8 {[%clk 0:01:59]} 19. b4 {[%clk 0:01:25]}  Ne4 {[%clk 0:01:58]} 20. Bd3 {[%clk 0:01:15]}  Ng3 {[%clk 0:01:27]} 21. Rfe1 {[%clk 0:01:08]}  Kf8 {[%clk 0:01:21]} 22. Kf2 {[%clk 0:00:54]}  Nf5 {[%clk 0:01:17]} 23. g4 {[%clk 0:00:44]}  Nd4 {[%clk 0:01:16]} 24. Re4 {[%clk 0:00:43]}  Nc6 {[%clk 0:01:15]} 25. Rce1 {[%clk 0:00:40]}  Be6 {[%clk 0:00:43]} 26. Nb6 {[%clk 0:00:34]}  Nxb4 {[%clk 0:00:35]} 27. Bf1 {[%clk 0:00:27]}  Rc6 {[%clk 0:00:26]} 28. Na4 {[%clk 0:00:16]}  Rec8 {[%clk 0:00:26]} 29. a3 {[%clk 0:00:15]}  Nc2 {[%clk 0:00:18]} 30. Rc1 {[%clk 0:00:11]}  Nxa3 {[%clk 0:00:18]} 31. Nb2 {[%clk 0:00:09]}  b5 {[%clk 0:00:16]} 32. Rc3 {[%clk 0:00:08]}  Nxc4 {[%clk 0:00:17]} 33. Nxc4 {[%clk 0:00:06]}  Bxc4 {[%clk 0:00:18]} 34. Bg2 {[%clk 0:00:06]}  Bd5 {[%clk 0:00:17]} 35. Rxc6 {[%clk 0:00:03]}  Rxc6 {[%clk 0:00:15]} 36. Re2 {[%clk 0:00:03]}  Bxg2 {[%clk 0:00:14]} 37. Kxg2 {[%clk 0:00:04]}  b4 {[%clk 0:00:15]} 38. Rb2 {[%clk 0:00:04]}  Rb6 {[%clk 0:00:15]} 39. Kf3 {[%clk 0:00:04]}  a5 {[%clk 0:00:16]} 40. Ke4 {[%clk 0:00:05]}  a4 {[%clk 0:00:16]} 41. Kd4 {[%clk 0:00:06]}  a3 {[%clk 0:00:17]} 42. Rb3 {[%clk 0:00:06]}  a2 {[%clk 0:00:17]} 0-1


[Site "https://www.chess.com"]

[Event "Titled Tuesday Blitz February 14 Early 2023"]
[White "Clawitter, Craig"]
[Black "Buscar, Michael"]
[WhiteFideId "2023105"]
[BlackFideId "2603616"]
[WhiteElo "2050"]
[BlackElo "2041"]
[Result "1-0"]
[Round "09"]
[TimeControl "180+2"]
[Date "2023.02.14"]
[WhiteClock "0:00:43"]
[BlackClock "0:01:08"]

1. e4 {[%clk 0:02:55]}  c6 {[%clk 0:02:53]} 2. d4 {[%clk 0:02:54]}  d6 {[%clk 0:02:53]} 3. Nc3 {[%clk 0:02:53]}  Qc7 {[%clk 0:02:48]} 4. f4 {[%clk 0:02:52]}  e5 {[%clk 0:02:46]} 5. Nf3 {[%clk 0:02:52]}  Bg4 {[%clk 0:02:45]} 6. Be3 {[%clk 0:02:45]}  Nd7 {[%clk 0:02:44]} 7. Qd2 {[%clk 0:02:39]}  Ngf6 {[%clk 0:02:41]} 8. O-O-O {[%clk 0:02:14]}  exd4 {[%clk 0:02:30]} 9. Qxd4 {[%clk 0:02:07]}  Bxf3 {[%clk 0:02:12]} 10. gxf3 {[%clk 0:02:07]}  Qb6 {[%clk 0:02:04]} 11. Qd2 {[%clk 0:01:50]}  Qa5 {[%clk 0:02:03]} 12. Kb1 {[%clk 0:01:48]}  O-O-O {[%clk 0:02:02]} 13. Bh3 {[%clk 0:01:30]}  Be7 {[%clk 0:01:54]} 14. e5 {[%clk 0:01:21]}  dxe5 {[%clk 0:01:52]} 15. fxe5 {[%clk 0:01:20]}  Qxe5 {[%clk 0:01:52]} 16. Bd4 {[%clk 0:00:46]}  Qd6 {[%clk 0:01:28]} 17. Bxf6 {[%clk 0:00:44]}  Qxd2 {[%clk 0:01:28]} 18. Rxd2 {[%clk 0:00:44]}  Bxf6 {[%clk 0:01:28]} 19. Rhd1 {[%clk 0:00:44]}  Bxc3 {[%clk 0:01:08]} 20. bxc3 {[%clk 0:00:43]} 1-0


[Site "https://www.chess.com"]

[Event "Titled Tuesday Blitz February 14 Early 2023"]
[White "Vifleemskaia, Svetlana"]
[Black "Ciuffoletti, Paolo"]
[WhiteFideId "4129490"]
[BlackFideId "807630"]
[WhiteElo "1971"]
[BlackElo "2106"]
[Result "1-0"]
[Round "09"]
[TimeControl "180+2"]
[Date "2023.02.14"]
[WhiteClock "0:00:13"]
[BlackClock "0:00:03"]

1. d4 {[%clk 0:02:14]}  d5 {[%clk 0:02:58]} 2. c4 {[%clk 0:02:13]}  c6 {[%clk 0:02:57]} 3. cxd5 {[%clk 0:02:13]}  cxd5 {[%clk 0:02:57]} 4. Bf4 {[%clk 0:02:13]}  Nc6 {[%clk 0:02:57]} 5. e3 {[%clk 0:02:14]}  Nf6 {[%clk 0:02:55]} 6. Nc3 {[%clk 0:02:14]}  Bf5 {[%clk 0:02:44]} 7. Qb3 {[%clk 0:02:13]}  Na5 {[%clk 0:02:37]} 8. Qa4+ {[%clk 0:02:13]}  Bd7 {[%clk 0:02:33]} 9. Qc2 {[%clk 0:02:11]}  Rc8 {[%clk 0:02:31]} 10. Nf3 {[%clk 0:02:10]}  e6 {[%clk 0:02:30]} 11. Bd3 {[%clk 0:02:09]}  Be7 {[%clk 0:02:27]} 12. O-O {[%clk 0:02:09]}  O-O {[%clk 0:02:27]} 13. h3 {[%clk 0:02:07]}  b5 {[%clk 0:02:26]} 14. a3 {[%clk 0:02:06]}  Nc4 {[%clk 0:02:23]} 15. Ne5 {[%clk 0:02:04]}  Be8 {[%clk 0:02:09]} 16. Rac1 {[%clk 0:01:54]}  a5 {[%clk 0:01:53]} 17. Qe2 {[%clk 0:01:53]}  b4 {[%clk 0:01:44]} 18. axb4 {[%clk 0:01:47]}  axb4 {[%clk 0:01:44]} 19. Nb1 {[%clk 0:01:39]}  Nxe5 {[%clk 0:01:21]} 20. Bxe5 {[%clk 0:01:32]}  Bd7 {[%clk 0:01:10]} 21. Nd2 {[%clk 0:01:30]}  Qb6 {[%clk 0:01:06]} 22. Nf3 {[%clk 0:01:17]}  Ne4 {[%clk 0:01:00]} 23. Rc2 {[%clk 0:01:07]}  Rxc2 {[%clk 0:00:57]} 24. Qxc2 {[%clk 0:01:06]}  Rc8 {[%clk 0:00:55]} 25. Qb1 {[%clk 0:01:06]}  f6 {[%clk 0:00:43]} 26. Bf4 {[%clk 0:00:59]}  f5 {[%clk 0:00:37]} 27. Rc1 {[%clk 0:00:51]}  Rxc1+ {[%clk 0:00:29]} 28. Qxc1 {[%clk 0:00:50]}  Qc6 {[%clk 0:00:30]} 29. Qxc6 {[%clk 0:00:47]}  Bxc6 {[%clk 0:00:29]} 30. Ne5 {[%clk 0:00:47]}  Ba4 {[%clk 0:00:26]} 31. f3 {[%clk 0:00:38]}  Nd6 {[%clk 0:00:19]} 32. Kf1 {[%clk 0:00:36]}  Bb5 {[%clk 0:00:19]} 33. Ke2 {[%clk 0:00:35]}  Bf6 {[%clk 0:00:16]} 34. Bxb5 {[%clk 0:00:29]}  Nxb5 {[%clk 0:00:15]} 35. Nd3 {[%clk 0:00:29]}  Be7 {[%clk 0:00:13]} 36. Kd2 {[%clk 0:00:26]}  Kf8 {[%clk 0:00:13]} 37. Kc2 {[%clk 0:00:26]}  g5 {[%clk 0:00:09]} 38. Be5 {[%clk 0:00:25]}  Ke8 {[%clk 0:00:06]} 39. Kb3 {[%clk 0:00:24]}  Kd7 {[%clk 0:00:06]} 40. Nxb4 {[%clk 0:00:24]}  Nd6 {[%clk 0:00:06]} 41. Bxd6 {[%clk 0:00:23]}  Bxd6 {[%clk 0:00:06]} 42. Nd3 {[%clk 0:00:23]}  h5 {[%clk 0:00:05]} 43. g4 {[%clk 0:00:23]}  fxg4 {[%clk 0:00:04]} 44. fxg4 {[%clk 0:00:23]}  h4 {[%clk 0:00:04]} 45. Kc3 {[%clk 0:00:16]}  Kc6 {[%clk 0:00:04]} 46. b4 {[%clk 0:00:14]}  Kb5 {[%clk 0:00:04]} 47. Kb3 {[%clk 0:00:15]}  Be7 {[%clk 0:00:04]} 48. Nc5 {[%clk 0:00:14]}  e5 {[%clk 0:00:03]} 49. dxe5 {[%clk 0:00:14]}  Bxc5 {[%clk 0:00:04]} 50. bxc5 {[%clk 0:00:15]}  Kxc5 {[%clk 0:00:04]} 51. Kc3 {[%clk 0:00:14]}  Kb5 {[%clk 0:00:02]} 52. Kd4 {[%clk 0:00:12]}  Kc6 {[%clk 0:00:02]} 53. e6 {[%clk 0:00:13]}  Kd6 {[%clk 0:00:02]} 54. e7 {[%clk 0:00:13]}  Kxe7 {[%clk 0:00:03]} 55. Kxd5 {[%clk 0:00:13]}  Kf6 {[%clk 0:00:03]} 56. Kd6 {[%clk 0:00:13]} 1-0


[Site "https://www.chess.com"]

[Event "Titled Tuesday Blitz February 14 Early 2023"]
[White "Broca Jimenez, Fernando"]
[Black "Sovetbekova, Nurai"]
[WhiteFideId "5104742"]
[BlackFideId "13801910"]
[WhiteElo "2075"]
[BlackElo "1764"]
[Result "0-1"]
[Round "09"]
[TimeControl "180+2"]
[Date "2023.02.14"]
[WhiteClock "0:00:01"]
[BlackClock "0:00:09"]

1. e4 {[%clk 0:01:09]}  c5 {[%clk 0:02:59]} 2. c3 {[%clk 0:01:02]}  Nf6 {[%clk 0:02:58]} 3. e5 {[%clk 0:01:02]}  Nd5 {[%clk 0:02:58]} 4. d4 {[%clk 0:01:03]}  cxd4 {[%clk 0:02:58]} 5. Nf3 {[%clk 0:01:02]}  Nc6 {[%clk 0:02:56]} 6. Bc4 {[%clk 0:01:03]}  Nb6 {[%clk 0:02:56]} 7. Bb3 {[%clk 0:01:03]}  d6 {[%clk 0:02:53]} 8. exd6 {[%clk 0:01:03]}  Qxd6 {[%clk 0:02:52]} 9. cxd4 {[%clk 0:01:03]}  Bg4 {[%clk 0:02:50]} 10. O-O {[%clk 0:00:45]}  e6 {[%clk 0:02:25]} 11. Nc3 {[%clk 0:00:18]}  Be7 {[%clk 0:02:21]} 12. d5 {[%clk 0:00:19]}  exd5 {[%clk 0:02:18]} 13. Nxd5 {[%clk 0:00:19]}  Nxd5 {[%clk 0:02:13]} 14. Bxd5 {[%clk 0:00:18]}  O-O {[%clk 0:02:09]} 15. Be3 {[%clk 0:00:18]}  Rad8 {[%clk 0:02:00]} 16. Be4 {[%clk 0:00:18]}  Qe6 {[%clk 0:01:49]} 17. Qc2 {[%clk 0:00:16]}  Nb4 {[%clk 0:01:39]} 18. Qb1 {[%clk 0:00:12]}  Bf6 {[%clk 0:01:34]} 19. a3 {[%clk 0:00:11]}  Nd5 {[%clk 0:01:32]} 20. Nd4 {[%clk 0:00:10]}  Bxd4 {[%clk 0:01:20]} 21. Bxd4 {[%clk 0:00:11]}  f5 {[%clk 0:01:18]} 22. Bxd5 {[%clk 0:00:09]}  Qxd5 {[%clk 0:01:16]} 23. Bc3 {[%clk 0:00:10]}  Rfe8 {[%clk 0:01:13]} 24. Qa2 {[%clk 0:00:11]}  Be2 {[%clk 0:00:55]} 25. Qxd5+ {[%clk 0:00:09]}  Rxd5 {[%clk 0:00:56]} 26. Rfe1 {[%clk 0:00:09]}  Kf7 {[%clk 0:00:50]} 27. f3 {[%clk 0:00:09]}  Rdd8 {[%clk 0:00:44]} 28. Kf2 {[%clk 0:00:10]}  Bc4 {[%clk 0:00:44]} 29. Rxe8 {[%clk 0:00:10]}  Rxe8 {[%clk 0:00:44]} 30. Re1 {[%clk 0:00:11]}  Rd8 {[%clk 0:00:42]} 31. Re5 {[%clk 0:00:10]}  Be6 {[%clk 0:00:36]} 32. Re2 {[%clk 0:00:09]}  g6 {[%clk 0:00:36]} 33. Rd2 {[%clk 0:00:09]}  Rc8 {[%clk 0:00:34]} 34. Rd6 {[%clk 0:00:09]}  a6 {[%clk 0:00:30]} 35. Rd2 {[%clk 0:00:09]}  b5 {[%clk 0:00:28]} 36. g3 {[%clk 0:00:09]}  Ra8 {[%clk 0:00:25]} 37. h4 {[%clk 0:00:09]}  a5 {[%clk 0:00:24]} 38. Rd6 {[%clk 0:00:08]}  Ke7 {[%clk 0:00:23]} 39. Rb6 {[%clk 0:00:08]}  Bd7 {[%clk 0:00:19]} 40. Rb7 {[%clk 0:00:04]}  Kd6 {[%clk 0:00:17]} 41. Rb6+ {[%clk 0:00:03]}  Ke7 {[%clk 0:00:12]} 42. Bd4 {[%clk 0:00:01]}  Rc8 {[%clk 0:00:10]} 43. Bc3 {[%clk 0:00:01]}  Rc4 {[%clk 0:00:09]} 0-1


[Site "https://www.chess.com"]

[Event "Titled Tuesday Blitz February 14 Early 2023"]
[White "Schut, Han"]
[Black "Jesusesmifuerza"]
[WhiteFideId "1005561"]
[WhiteElo "2101"]
[BlackElo "2006"]
[Result "1/2-1/2"]
[Round "09"]
[TimeControl "180+2"]
[Date "2023.02.14"]
[WhiteClock "0:00:13"]
[BlackClock "0:00:23"]

1. e4 {[%clk 0:02:55]}  c5 {[%clk 0:02:59]} 2. Nf3 {[%clk 0:02:55]}  e6 {[%clk 0:02:59]} 3. c4 {[%clk 0:02:55]}  Nc6 {[%clk 0:02:55]} 4. Nc3 {[%clk 0:02:55]}  Nf6 {[%clk 0:02:55]} 5. Be2 {[%clk 0:02:55]}  d5 {[%clk 0:02:56]} 6. exd5 {[%clk 0:02:56]}  exd5 {[%clk 0:02:56]} 7. d4 {[%clk 0:02:57]}  cxd4 {[%clk 0:02:53]} 8. Nxd4 {[%clk 0:02:58]}  dxc4 {[%clk 0:02:49]} 9. Nxc6 {[%clk 0:02:55]}  Qxd1+ {[%clk 0:02:49]} 10. Nxd1 {[%clk 0:02:52]}  bxc6 {[%clk 0:02:48]} 11. Bxc4 {[%clk 0:02:52]}  Bb4+ {[%clk 0:02:47]} 12. Bd2 {[%clk 0:02:49]}  Bxd2+ {[%clk 0:02:46]} 13. Kxd2 {[%clk 0:02:50]}  O-O {[%clk 0:02:46]} 14. Ne3 {[%clk 0:02:38]}  c5 {[%clk 0:02:41]} 15. Rhd1 {[%clk 0:02:23]}  Bb7 {[%clk 0:02:39]} 16. Ke2 {[%clk 0:02:21]}  Rfe8 {[%clk 0:02:37]} 17. Kf1 {[%clk 0:02:21]}  Rad8 {[%clk 0:02:34]} 18. Rxd8 {[%clk 0:02:16]}  Rxd8 {[%clk 0:02:34]} 19. Rd1 {[%clk 0:02:17]}  Rxd1+ {[%clk 0:02:32]} 20. Nxd1 {[%clk 0:02:17]}  Bd5 {[%clk 0:02:31]} 21. Bxd5 {[%clk 0:02:16]}  Nxd5 {[%clk 0:02:31]} 22. g3 {[%clk 0:02:09]}  Kf8 {[%clk 0:02:31]} 23. Ke2 {[%clk 0:02:09]}  Ke7 {[%clk 0:02:31]} 24. Kd3 {[%clk 0:02:05]}  Kd6 {[%clk 0:02:17]} 25. a3 {[%clk 0:02:05]}  f5 {[%clk 0:02:12]} 26. f4 {[%clk 0:02:05]}  g6 {[%clk 0:02:08]} 27. b3 {[%clk 0:01:55]}  a6 {[%clk 0:02:04]} 28. Nb2 {[%clk 0:01:55]}  Nb6 {[%clk 0:01:56]} 29. a4 {[%clk 0:01:26]}  Nd5 {[%clk 0:01:46]} 30. Nc4+ {[%clk 0:01:21]}  Kc6 {[%clk 0:01:38]} 31. Ne5+ {[%clk 0:01:21]}  Kd6 {[%clk 0:01:37]} 32. Nf7+ {[%clk 0:01:21]}  Ke7 {[%clk 0:01:36]} 33. Kc4 {[%clk 0:00:53]}  Ne3+ {[%clk 0:00:47]} 34. Kd3 {[%clk 0:00:30]}  Nf1 {[%clk 0:00:42]} 35. Ng5 {[%clk 0:00:30]}  Nxh2 {[%clk 0:00:38]} 36. Nxh7 {[%clk 0:00:21]}  Nf1 {[%clk 0:00:37]} 37. Kc4 {[%clk 0:00:20]}  Kd6 {[%clk 0:00:36]} 38. Ng5 {[%clk 0:00:18]}  Nxg3 {[%clk 0:00:36]} 39. Nf7+ {[%clk 0:00:19]}  Kc6 {[%clk 0:00:27]} 40. Ne5+ {[%clk 0:00:19]}  Kb6 {[%clk 0:00:27]} 41. Nxg6 {[%clk 0:00:19]}  Ne2 {[%clk 0:00:27]} 42. Kd5 {[%clk 0:00:16]}  a5 {[%clk 0:00:25]} 43. Ke5 {[%clk 0:00:15]}  c4 {[%clk 0:00:23]} 44. bxc4 {[%clk 0:00:15]}  Kc5 {[%clk 0:00:23]} 45. Kxf5 {[%clk 0:00:15]}  Nxf4 {[%clk 0:00:23]} 46. Nxf4 {[%clk 0:00:13]}  Kxc4 {[%clk 0:00:24]} 47. Ke5 {[%clk 0:00:12]}  Kb4 {[%clk 0:00:24]} 48. Nd3+ {[%clk 0:00:11]}  Kxa4 {[%clk 0:00:24]} 49. Kd4 {[%clk 0:00:11]}  Kb3 {[%clk 0:00:24]} 50. Nc5+ {[%clk 0:00:12]}  Kb4 {[%clk 0:00:24]} 51. Kd5 {[%clk 0:00:12]}  a4 {[%clk 0:00:23]} 52. Nxa4 {[%clk 0:00:13]} 1/2-1/2


[Site "https://www.chess.com"]